Cogmind - Beta 10.1 @@@ ROGUE MODE // 2020.10.28 @ 14:50:54 Player: Atherys Result: Self-destructed Performance ------------- Evolutions (1) 500 Regions Visited (2) 400 Robots Destroyed (10) 50 Value Destroyed (238) 238 Prototype IDs (0) 0 Alien Tech Used (0) 0 Bonus (7) 7 TOTAL SCORE: 1195 Bonus ------- Follower Combat Kills 7 Cogmind --------- Core Integrity 133/400 Matter 212/300 Energy 50/100 System Corruption 0% Temperature Cool (0) Movement Rolling (80) Location -9/Materials Parts ------- > --- POWER (2) -------- (None) > --- PROPULSION (2) --- Wheel > --- UTILITY (3) ------ Medium Storage Unit Signal Interpreter Improved Terrain Scan Processor > --- WEAPON (2) ------- (None) > --- INVENTORY (8) ---- Hacking Suite Peak State ------------ > --- POWER ------------ Light Nuclear Core Light Nuclear Core > --- PROPULSION ------- Aluminum Leg > --- UTILITY ---------- Medium Storage Unit Signal Interpreter Improved Terrain Scan Processor > --- WEAPON ----------- Beam Cannon > --- INVENTORY -------- Small Storage Unit Hacking Suite [Rating: 13] Favorites ----------- Power Light Nuclear Core Power Core Light Nuclear Core Propulsion Aluminum Leg Leg Aluminum Leg Wheel Wheel Utility Signal Interpreter Storage Medium Storage Unit Processor Signal Interpreter Weapon Assault Rifle Energy Cannon Beam Cannon Ballistic Gun Assault Rifle Special Weapon Welding Torch Build | -11 -10 -9 ------- Run | Scr Mat Mat Slots Evolved 2 | . . 2 Power 1 | . . 1 Propulsion . | . . . Utility 1 | . . 1 Weapon . | . . . Parts Attached 15 | 5 4 6 Power 2 | . . 2 Engine . | . . . Core 2 | . . 2 Reactor . | . . . Propulsion 3 | 2 . 1 Treads . | . . . Leg 2 | 2 . . Wheel 1 | . . 1 Hover . | . . . Flight . | . . . Utility 4 | 1 2 1 Device . | . . . Storage 2 | 1 1 . Processor 2 | . 1 1 Hackware . | . . . Protection . | . . . Artifact . | . . . Weapon 6 | 2 2 2 Energy Gun . | . . . Energy Cannon 2 | . 1 1 Ballistic Gun 3 | 2 1 . Ballistic Cannon . | . . . Launcher . | . . . Special Weapon 1 | . . 1 Impact Weapon . | . . . Slashing Weapon . | . . . Piercing Weapon . | . . . Special Melee Weapon . | . . . Unidentified Prototypes . | . . . Parts Lost 8 | . 2 6 Power 2 | . . 2 Propulsion 2 | . 1 1 Utility . | . . . Weapon 4 | . 1 3 Highest Loss Streak 3 | . 2 3 Average Slot Usage (%) 72 | . 84 63 Core 9 | . . 16 Leg 15 | . 28 6 Wheel 1 | . . 1 Storage 12 | . 14 11 Processor 17 | . 13 21 Energy Cannon 4 | . 2 6 Ballistic Gun 11 | . 25 . Naked Turns . | . . . Heaviest Build 21 | 7 13 21 Greatest Support 20 | 20 20 10 Greatest Overweight (x) 5 | . 1 5 Average Overweight (x) . | . . 1 Largest Inventory Capacity 8 | 6 8 8 Average Capacity 7 | 5 6 8 Most Carried 2 | . 2 2 Average Carried . | . . 1 Final Capacity 8 | 6 8 8 Final Carried 2 | . 2 1 Class Distribution -------------------- 100% | Mutant Dominant Class ---------------- Mutant | -10/Materials Mutant | -9/Materials Resources | -11 -10 -9 ----------- Run | Scr Mat Mat Matter Collected 297 | 167 43 87 Remotely . | . . . Salvage Created 319 | . 232 87 Parts 19 | . 15 4 Haulers Intercepted . | . . . Recyclers Shooed . | . . . Parts Field Recycled . | . . . Retrieved Matter . | . . . Parts Self-Destructed . | . . . Prevented . | . . . Kills | -11 -10 -9 ------- Run | Scr Mat Mat Combat Hostiles Destroyed 7 | . 6 1 Guns 6 | . 6 . Cannons 1 | . . 1 Classes Destroyed 5 | . 3 2 Builder 1 | . . 1 Operator 2 | . 2 . Swarmer 2 | . 2 . Grunt 4 | . 4 . Sentry 1 | . . 1 Best Kill Streak 4 | . 4 2 Combat Bots Only 3 | . 3 1 Max Kills in Single Turn 2 | . 2 1 Gunslinging 1 | . 1 . Exploded . | . . . Melee . | . . . Uniques/NPCs Destroyed . | . . . Combat | -11 -10 -9 -------- Run | Scr Mat Mat Damage Taken 1066 | . 441 625 Core 341 | . 74 267 Absorbed by Shields . | . . . Core Remaining (%) 85 | 100 70 . Volleys Fired 35 | 1 21 13 Largest 2 | 2 2 1 Hottest 56 | 40 40 56 Shots Fired 57 | 2 42 13 Gun 44 | 2 42 . Cannon 9 | . . 9 Launcher . | . . . Special 4 | . . 4 Kinetic 44 | 2 42 . Thermal 4 | . . 4 Explosive . | . . . Electromagnetic 9 | . . 9 Robot Hit Streak 10 | . 10 3 Robot Miss Streak 5 | 2 5 5 Penetration Max . | . . . Secondary Targets 2 | . 2 . Max Gunslinging Chain 1 | . 1 . Shots Hit Robots 31 | . 25 6 Core Hits 19 | . 14 5 Critical Hits 2 | . 2 . Critical Kills 1 | . 1 . Critical Parts Destroyed 1 | . 1 . Melee Attacks . | . . . Impact . | . . . Slashing . | . . . Piercing . | . . . Sneak Attacks . | . . . Combat Hostiles . | . . . Follow-up Attacks . | . . . Damage Inflicted 436 | . 303 133 Guns 297 | . 297 . Cannons 120 | . . 120 Explosions . | . . . Melee . | . . . Ramming 17 | . 6 11 Kinetic 297 | . 297 . Thermal 2 | . . 2 Explosive . | . . . Electromagnetic 120 | . . 120 Impact . | . . . Slashing . | . . . Piercing . | . . . Highest Corruption . | . . . Average Corruption . | . . . Corruption Purged . | . . . Overload Shots . | . . . Overflow Damage . | . . . Projectiles . | . . . Explosions . | . . . Melee . | . . . Knockbacks 1 | . . 1 Impact 1 | . . 1 Kinetic . | . . . Secondary . | . . . Self-Inflicted Damage 8 | . 3 5 Shots . | . . . Rammed 4 | . 2 2 Targets Rammed 4 | . 2 2 Kicked . | . . . Crushed . | . . . Highest Temperature 130 | . 1 130 Average Temperature 42 | . 1 56 Received Heat Transfer 393 | . 186 207 Siege Activations . | . . . Robots Corrupted . | . . . Combat Hostiles . | . . . Parts Fried . | . . . Impact Corruptions . | . . . Robots Melted . | . . . Combat Hostiles . | . . . Parts Melted . | . . . Heat Transferred 25 | . . 25 Parts Sabotaged . | . . . Parts Stolen . | . . . Parts Stripped . | . . . Power Chain Reactions . | . . . Missiles Intercepted . | . . . Alert | -11 -10 -9 ------- Run | Scr Mat Mat Peak Influence 180 | . 180 103 Initial 67 | . . 67 Average 68 | . 76 72 Maximum Alert Level . | . . . Low Security (%) 100 | 100 100 100 Level 1 . | . . . Level 2 . | . . . Level 3 . | . . . Level 4 . | . . . Level 5 . | . . . High Security . | . . . Max Security . | . . . Squads Dispatched 7 | . 3 4 Investigation 2 | . . 2 Extermination . | . . . Reinforcement 5 | . 3 2 Assault . | . . . Garrison . | . . . Intercept . | . . . Construction Impeded 1 | . . 1 Haulers Reinforced . | . . . Stealth | -11 -10 -9 --------- Run | Scr Mat Mat Distress Signals 1 | . 1 . Communications Jammed . | . . . Distress Signals . | . . . Times Spotted 27 | . 18 9 Peak Tracking Total 6 | . 4 6 Tactical Retreats . | . . . Traps | -11 -10 -9 ------- Run | Scr Mat Mat Traps Triggered 1 | . . 1 Indirectly . | . . . Trap Hack Attempts . | . . . Triggered . | . . . Disarmed . | . . . Reprogrammed . | . . . Reused . | . . . Traps Extracted . | . . . Installed . | . . . Triggered . | . . . Machines | -11 -10 -9 ---------- Run | Scr Mat Mat Machines Disabled . | . . . Max in Single Turn . | . . . Machines Sabotaged . | . . . Garrisons Compromised . | . . . Overloaded Fab Kills . | . . . Fab Network Shutdowns . | . . . Hacking | -11 -10 -9 --------- Run | Scr Mat Mat Machines Accessed 2 | . . 2 Terminals 1 | . . 1 Fabricators . | . . . Repair Stations 1 | . . 1 Recycling Units . | . . . Scanalyzers . | . . . Garrison Access . | . . . Total Hacks 3 | . . 3 Successful 1 | . . 1 Failed 2 | . . 2 Catastrophic 1 | . . 1 Database Lockouts . | . . . Manual 2 | . . 2 Terminals 1 | . . 1 Fabricators . | . . . Repair Stations 2 | . . 2 Recycling Units . | . . . Scanalyzers . | . . . Garrison Access . | . . . Terminal Hacks 1 | . . 1 Zone Layout 1 | . . 1 Fabricator Hacks . | . . . Repair Station Hacks . | . . . Recycling Unit Hacks . | . . . Scanalyzer . | . . . Garrison Access Hacks . | . . . Unauthorized Hacks . | . . . Terminals . | . . . Fabricators . | . . . Repair Stations . | . . . Recycling Units . | . . . Scanalyzers . | . . . Garrison Access . | . . . Data Cores Recovered . | . . . Used . | . . . Hacking Detections 1 | . . 1 Full Trace Events 1 | . . 1 Feedback Events . | . . . Feedback Blocked . | . . . Robot Schematics Acquired . | . . . Robots Built . | . . . Matter . | . . . Time . | . . . Total Robot Build Rating . | . . . Part Schematics Acquired . | . . . Parts Built . | . . . Matter . | . . . Time . | . . . Total Part Build Rating . | . . . Parts Repaired . | . . . Time . | . . . Parts Recycled . | . . . Recycled Matter . | . . . Retrieved Matter . | . . . Retrieved Components . | . . . Parts Scanalyzed . | . . . Part Schematics Acquired . | . . . Parts Damaged . | . . . Bothacking | -11 -10 -9 ------------ Run | Scr Mat Mat Used RIF Installer . | . . . Robots Hacked . | . . . Non-combat . | . . . Combat . | . . . Robot Hacks Applied . | . . . Relay Couplers Released . | . . . Robots Rewired 1 | . . 1 Allies Hacked . | . . . Hacks Repelled . | . . . Allies | -11 -10 -9 -------- Run | Scr Mat Mat Total Allies 1 | . . 1 Largest Group 1 | . . 1 Highest-Rated Group 15 | . . 15 Highest-Rated Ally 15 | . . 15 Total Orders . | . . . Ally Attacks 4 | . . 4 Total Damage 103 | . . 103 Kills 1 | . . 1 Allies Corrupted . | . . . Allies Melted . | . . . Intel | -11 -10 -9 ------- Run | Scr Mat Mat Robot Analysis Total . | . . . Derelict Logs Recovered . | . . . Drone Launches . | . . . Drone Recoveries . | . . . Exploration | -11 -10 -9 ------------- Run | Scr Mat Mat Turns Passed 568 | 46 231 291 Spaces Moved 315 | 36 127 152 Core 29 | 9 . 20 Treads . | . . . Legs 238 | 27 127 84 Wheels 48 | . . 48 Hover . | . . . Flight . | . . . Fastest Speed 50 | 50 120 80 Average Speed 135 | 102 121 155 Slowest Speed 300 | 120 150 300 Overloaded Moves . | . . . Propulsion Burnouts . | . . . Robots Hopped . | . . . Cave-ins Triggered . | . . . Exploration Rate (%) 17 | 3 36 12 Regions Visited 2 Branch Regions . Pre-discovered Areas . | . . . Known Exits Taken 1 | . 1 . Unknown Exits Taken 1 | 1 . . Scrap Searched . | . . . Spaces Dug . | . . . Terrain Destroyed . | . . . Melee . | . . . Projectile . | . . . AOE . | . . . Terrain Rammed . | . . . Walls Destroyed . | . . . Machines Disabled . | . . . Actions | -11 -10 -9 --------- Run | Scr Mat Mat Total 396 | 41 165 190 Wait 21 | . 9 12 Move 313 | 35 126 152 Hop . | . . . Pick Up 2 | . 1 1 Fast Attach 13 | 5 3 5 Attach 1 | . . 1 Detach . | . . . Swap 1 | . 1 . Drop 3 | . 2 1 Fire 35 | 1 21 13 Melee . | . . . Ram 2 | . . 2 Kick 2 | . 2 . Crush . | . . . Escape Stasis . | . . . Rewire 3 | . . 3 Trap . | . . . Miscellaneous . | . . . Route ------- -11/Scrapyard -10/Materials -9/Materials History --------- Turn | Location | Event 16 | -11/Scrapyard | Discovered new exit (range 14) 47 | -11/Scrapyard | Entered Materials 267 | -10/Materials | Discovered new exit (range 6) 277 | -10/Materials | Identified exit to Materials 278 | -10/Materials | Entered another Materials area 278 | -9/Materials | Evolved 2 slots: Power x1, Utility x1 315 | -9/Materials | Build established: Mutant 563 | -9/Materials | Core integrity fell below 50% 569 | -9/Materials | Self-destructed Last Messages --------------- 00539_ Connecting with Repair Station... 00539_ ALERT: Suspicious activity at Repair Station M001. Dispatching Investigation squad. 00542_ C-30 ARC bursts open, deploying its payload. 00542_ G-47 Trooper unfolds itself. 00542_ G-34 Mercenary unfolds itself. 00542_ Lgt. EM Pulse Cannon destroyed. 00542_ Lgt. Nuclear Core destroyed. 00546_ K-01 Serf collects debris. 00550_ ALERT: Hostiles spotted, dispatching reinforcements to Terminal M002. 00550_ K-01 Serf collects debris. 00553_ Acquired Welding Torch. 00554_ K-01 Serf collects debris. 00554_ S-10 Pest destroyed. 00557_ K-01 Serf collects debris. 00559_ Defender 2a destroyed. 00567_ Welding Torch destroyed. 00568_ K-01 Serf collects debris. 00568_ U-05 Engineer lays Concrete. Map ----- +----------------------------------------------------+ | ???????????????????????# # """"" #? | | ???????????????????????# # """"" !#? | | ???????????????????????# # #? | | ???????????????????????# ######+#### | | ???????????????????????# ## # | | ???????????????????????# ## """ # | | ??????????????????????## ## """ # | | ??????????????????????# # """ # | | ??????????????????????# # # | | ??????????????????????# + """ # | | ??????????????????????# k # """ # | | ???###########????????# # """ # | | ??? #????????### ### # | | ??? #??????????# #?########## | | ???" """ """ #??????????# #??????????? | | ???" """ """ #?###??????#!#??????????? | | ???" """ """ #?# ######## ###????????? | | ??? #?# # ! #????????? | | ???############# "" # #????????? | | ???# # "T o #????????? | | ???# # "" # #????????? | | ???# # # #????????? | | ???# # ! ## ##????????? | | ???# """ ######### #?????????? | | ???# """ #???????# #?????????? | | ???# """ #???????#*@ #?????????? | | ???######+##############s! #?????????? | | ??????# %gu #?????????? | | ??????# s ###???????? | | ??????# """ """ ""g #???????? | | ??????# """ """ """ #???????? | | ??????# """ """ R" #???????? | | ??????# """ #???????? | | ???#### #???????? | | ??? " #???????? | | ??????? "%" #???????? | | ???????? #############+####???????? | | ????????# #??????????????????????????? | | ?????????????????????????????????????? | | ?????????????????????????????????????? | | ?????????????????????????????????????? | | ?????????????????????????????????????? | | ?????????????????????????????????????? | | ?????????????????????????????????????? | | ?????????????????????????????????????? | | ?????????????????????????????????????? | | ?????????????????????????????????????? | | ?????????????????????????????????????? | | ?????????????????????????????????????? | | ?????????????????????????????????????? | +----------------------------------------------------+ Best States ------------- Heat Dissipation 28 Energy Generation 23 Energy Capacity 220 Matter Stores 217 Matter Capacity 300 Sight Range 16 Terrain Scan Density 110 Evasion (%) 50 Item Schematics ----------------- None Robot Schematics ------------------ None Fabricated ------------ Nothing Alien Tech Used ----------------- None Achievements -------------- None Challenges ------------ None Game ------ Seed ReclamationVisualRouter Manual? 0 Play Time 00:09:28 Cumulative 21.7 hours Start 2020.10.28 @ 14:43:12 End 2020.10.28 @ 14:50:54 Sessions 1 Manual Loads 0 Difficulty Rogue Special Mode None Game No. 45 Rogue 45 Adventurer 0 Explorer 0 Win Type - Total 0 Types 0/0/0/0/0/0/0/0/0 Lore% 20 Gallery% 25 Achievement% 23 Wizard Run 0 Options --------- ASCII 0 Keyboard 0 Movement Mouse Keybinds 0 Fullscreen 2 Font 24/Smallcaps Map View 76x50 Tactical HUD 1 Map Filters NONE Filters NONE Steam X RUN: 0839c695-7c99-48e5-8b93-80eac76bcc9a